fUST/lending_fUST_20250915
["ID","MTS","AMOUNT","RATE_DAILY","PERIOD"]
[385556158,1757895048565,-2500.0,0.00024164,2]
[385556159,1757895048575,-2500.0,0.00024164,2]
[385556160,1757895048584,-2500.0,0.00024164,2]
[385556161,1757895048593,-1812.60051514,0.00024164,2]
[385556162,1757895048603,-151.0,0.000242,3]
[385556163,1757895048613,-1040.53806382,0.0002421,2]
[385556164,1757895048625,-1000.0,0.00024243,2]
[385556165,1757895048637,-1000.0,0.00024243,2]
[385556166,1757895048647,-5000.0,0.00024262,30]
[385556167,1757895048657,-5000.0,0.00024262,30]
[385556168,1757895048667,-5000.0,0.00024262,30]
[385556169,1757895048677,-5000.0,0.00024262,30]
[385556170,1757895048686,-5000.0,0.00024262,30]
[385556171,1757895048696,-5000.0,0.00024262,30]
[385556172,1757895048706,-5000.0,0.00024262,30]
[385556173,1757895048716,-5000.0,0.00024262,30]
[385556174,1757895048726,-5000.0,0.00024262,30]
[385556175,1757895048735,-4508.04,0.00024262,30]
[385556176,1757895048745,-151.0,0.00024262,7]
[385556177,1757895048754,-151.0,0.00024262,7]
[385556178,1757895048764,-151.0,0.00024262,7]
[385556179,1757895048773,-360.0,0.00024265,2]
[385556180,1757895048783,-501.73394212,0.00024273,2]
[385556181,1757895048793,-500.0,0.00024273,2]
[385556182,1757895048803,-501.4894832,0.00024273,2]
[385556183,1757895048812,-500.0,0.00024273,2]
[385556184,1757895048821,-168.0,0.00024284,2]
[385556185,1757895048831,-2000.0,0.000243,2]
[385556186,1757895048840,-2000.0,0.000243,2]
[385556187,1757895048849,-151.0,0.00024308,3]
[385556188,1757895048859,-157.0,0.00024308,3]
[385556189,1757895048972,-157.0,0.00024308,3]
[385556190,1757895049000,-151.0,0.00024308,3]
[385556191,1757895049010,-620.0,0.00024308,3]
[385556192,1757895049019,-1000.0,0.00024355,2]
[385556193,1757895049029,-500.0,0.00024373,2]
[385556194,1757895049038,-480.0,0.00024383,3]
[385556195,1757895049048,-480.0,0.00024383,3]
[385556196,1757895049057,-151.0,0.00024383,7]
[385556197,1757895049066,-480.0,0.00024383,3]
[385556198,1757895049076,-480.0,0.00024383,3]
[385556199,1757895049085,-673.9,0.00024383,3]
[385556200,1757895049094,-542.05,0.00024383,3]
[385556201,1757895049103,-907.02,0.00024383,3]
[385556202,1757895049112,-480.0,0.00024383,3]
[385556203,1757895049122,-663.12,0.00024383,3]
[385556204,1757895049132,-901.88,0.00024383,3]
[385556205,1757895049142,-3388.12,0.00024383,3]
[385556206,1757895049151,-480.0,0.00024383,3]
[385556207,1757895049161,-480.0,0.00024383,3]
[385556208,1757895049170,-480.0,0.00024383,3]
[385556209,1757895049180,-480.0,0.00024383,3]
[385556210,1757895049189,-480.0,0.00024383,3]
[385556211,1757895049199,-3337.32,0.00024383,3]
[385556212,1757895049208,-480.0,0.00024383,3]
[385556213,1757895049218,-480.0,0.00024383,3]
[385556214,1757895049228,-151.41682,0.00024384,7]
[385556215,1757895049237,-633.24,0.000244,7]
[385556216,1757895049247,-192.235293,0.000244,2]
[385556217,1757895049256,-151.0,0.00024453,4]
[385556218,1757895049266,-1500.0,0.00024496,2]
[385556219,1757895049275,-1500.0,0.00024496,2]
[385556220,1757895049284,-2000.0,0.000245,2]
[385556221,1757895049294,-662.28414886,0.000245,2]
[385556222,1757895049303,-151.0,0.000245,8]
[385556223,1757895049312,-931.26,0.000245,7]
[385556224,1757895049321,-151.0,0.000245,7]
[385556225,1757895049331,-151.0,0.000245,7]
[385556226,1757895049340,-217.77739939,0.000245,7]
[385556227,1757895049349,-151.0,0.000245,7]
[385556228,1757895049358,-168.0,0.0002454,2]
[385556229,1757895049367,-1500.0,0.00024549,2]
[385556230,1757895049377,-242.99522321,0.0002455,2]
[385556231,1757895049387,-1500.0,0.00024567,2]
[385556232,1757895049397,-807.67328029,0.00024567,2]
[385556233,1757895049406,-168.0,0.00024574,2]
[385556234,1757895049416,-160.07115165,0.00024582,3]
[385556235,1757895049425,-152.99,0.00024582,3]
[385556236,1757895049435,-620.0,0.00024582,3]
[385556237,1757895049444,-400.0,0.0002459,2]
[385556238,1757895049453,-443503.26205733,0.0002465,2]
[385556239,1757895049463,-506.1753918,0.0002465,2]
[385556240,1757895049472,-151.0,0.0002465,7]
[385556241,1757895049481,-151.0,0.0002465,7]
[385556242,1757895049491,-151.0,0.0002465,7]
[385556243,1757895049500,-151.0,0.0002465,7]
[385556244,1757895049510,-659.2,0.00024657,3]
[385556245,1757895049519,-800.9,0.00024657,3]
[385556246,1757895049528,-480.0,0.00024657,3]
[385556247,1757895049538,-480.0,0.00024657,3]
[385556248,1757895049547,-480.0,0.00024657,3]
[385556249,1757895049557,-480.0,0.00024657,3]
[385556250,1757895049567,-673.9,0.00024657,3]
[385556251,1757895049576,-542.05,0.00024657,3]
[385556252,1757895049586,-907.02,0.00024657,3]
[385556253,1757895049595,-480.0,0.00024657,3]
[385556254,1757895049604,-663.12,0.00024657,3]
[385556255,1757895049614,-901.88,0.00024657,3]
[385556256,1757895049627,-3388.12,0.00024657,3]
[385556257,1757895049637,-447.89832882,0.00024657,3]
[385556258,1757895049646,-480.0,0.00024657,3]
[385556259,1757895049655,-480.0,0.00024657,3]
[385556260,1757895049666,-480.0,0.00024657,3]
[385556261,1757895049676,-480.0,0.00024657,3]
[385556262,1757895049685,-3337.32,0.00024657,3]
[385556263,1757895049694,-347.3276211,0.00024657,3]
[385556264,1757895049704,-480.0,0.00024657,3]
[385556265,1757895049714,-200.0,0.00024658,15]
[385556266,1757895049723,-200.0,0.00024658,2]
[385556267,1757895049732,-151.0,0.00024658,7]
[385556268,1757895049742,-151.0,0.00024658,7]
[385556269,1757895049751,-151.0,0.00024658,7]
[385556270,1757895049760,-195.872728,0.00024658,7]
[385556271,1757895049770,-380.0,0.00024658,2]
[385556272,1757895049779,-500.0,0.00024658,2]
[385556273,1757895049790,-151.0,0.00024658,3]
[385556274,1757895049799,-1500.0,0.00024669,2]
[385556275,1757895049808,-1500.0,0.00024669,2]
[385556276,1757895049817,-1500.0,0.00024669,2]
[385556277,1757895049827,-1157.07382482,0.00024669,2]
[385556278,1757895049836,-1255.42001739,0.00024669,2]
[385556279,1757895049845,-500.0,0.00024673,2]
[385556280,1757895049856,-500.0,0.00024673,2]
[385556281,1757895049865,-500.0,0.00024673,2]
[385556282,1757895049874,-500.0,0.00024673,2]
[385556283,1757895049884,-500.0,0.00024673,2]
[385556284,1757895049894,-500.0,0.00024673,2]
[385556285,1757895049905,-500.0,0.00024673,2]
[385556286,1757895049918,-500.59437154,0.00024673,2]
[385556287,1757895049928,-500.0,0.00024673,2]
[385556288,1757895049937,-500.0,0.00024673,2]
[385556289,1757895049947,-500.0,0.00024673,2]
[385556290,1757895049957,-500.0,0.00024673,2]
[385556291,1757895049966,-500.0,0.00024673,2]
[385556292,1757895049975,-25246.74,0.000247,7]
[385556293,1757895049985,-3000.0,0.00024712,2]
[385556294,1757895049994,-3077.06427023,0.00024712,2]
[385556295,1757895050003,-3000.0,0.00024712,2]
[385556296,1757895050013,-150.0,0.00024773,2]
[385556297,1757895050025,-16573.71209389,0.00024774,2]
[385556298,1757895050035,-1000.0,0.00024791,2]
[385556299,1757895050044,-1774.52,0.000248,7]
[385556300,1757895050053,-335587.138717,0.000248,2]
[385556301,1757895050062,-151.0,0.000248,7]
[385556302,1757895050072,-151.0,0.000248,7]
[385556303,1757895050081,-460.0,0.00024813,2]
[385556304,1757895050091,-1041.30234502,0.00024821,2]
[385556305,1757895050101,-501.76531383,0.00024821,2]
[385556306,1757895050111,-620.0,0.00024856,3]
[385556307,1757895050120,-500.0,0.00024873,2]
[385556308,1757895050129,-160.73895533,0.00024873,2]
[385556309,1757895050139,-2597.36335064,0.000249,30]
[385556310,1757895050148,-686989.400744,0.000249,2]
[385556311,1757895050158,-7536.11234433,0.000249,2]
[385556312,1757895050167,-502.005819,0.00024903,2]
[385556313,1757895050176,-1000.0,0.00024921,2]
[385556314,1757895050186,-659.2,0.00024931,3]
[385556315,1757895050196,-800.9,0.00024931,3]
[385556316,1757895050205,-408.37286485,0.00024931,3]
[385556317,1757895050214,-480.0,0.00024931,3]
[385556318,1757895050223,-480.0,0.00024931,3]
[385556319,1757895050233,-480.0,0.00024931,3]
[385556320,1757895050242,-673.9,0.00024931,3]
[385556321,1757895050251,-542.05,0.00024931,3]
[385556322,1757895050260,-907.02,0.00024931,3]
[385556323,1757895050269,-480.0,0.00024931,3]
[385556324,1757895050278,-663.12,0.00024931,3]
[385556325,1757895050288,-901.88,0.00024931,3]
[385556326,1757895050297,-3388.12,0.00024931,3]
[385556327,1757895050306,-480.0,0.00024931,3]
[385556328,1757895050315,-480.0,0.00024931,3]
[385556329,1757895050324,-480.0,0.00024931,3]
[385556330,1757895050333,-480.0,0.00024931,3]
[385556331,1757895050343,-3337.32,0.00024931,3]
[385556332,1757895050351,-480.0,0.00024931,3]
[385556333,1757895050361,-500.0,0.00024932,2]
[385556334,1757895050370,-153.5394127,0.00024932,3]
[385556335,1757895050380,-500.0,0.00024975,2]
[385556336,1757895050391,-1463.63976158,0.00025,2]
[385556337,1757895050400,-100020.0,0.00025,5]
[385556338,1757895050409,-150.0,0.00025,2]
[385556339,1757895050420,-193.15825256,0.00025,2]
[385556340,1757895050430,-49023.89351639,0.00025,2]
[385556341,1757895050439,-814.17950829,0.00025,30]
[385556342,1757895050448,-10200.0,0.00025,2]
[385556343,1757895050458,-1070.42813208,0.00025,2]
[385556344,1757895050466,-16112.51853739,0.00025,2]
[385556345,1757895050475,-2636.35662023,0.00025,2]
[385556346,1757895050484,-209.00528007,0.00025,2]
[385556347,1757895050497,-10364.0,0.00025,2]
[385556348,1757895050506,-360.80906999,0.00025,2]
[385556349,1757895050516,-500.0,0.00025,2]
[385556350,1757895050531,-104977.9492614,0.00025,2]
[385556351,1757895050541,-600.0,0.00025,2]
[385556352,1757895050550,-233.1999649,0.00025,30]
[385556353,1757895050560,-2000.0,0.00025044,2]
[385556354,1757895050570,-1389.41044593,0.00025044,2]
[385556355,1757895050582,-156.59530758,0.00025057,2]
[385556356,1757895050594,-2000.0,0.00025097,2]
[385556357,1757895050606,-2000.0,0.00025115,2]
[385556358,1757895050619,-168.0,0.00025123,2]
[385556359,1757895050636,-620.0,0.0002513,3]
[385556360,1757895050648,-168.0,0.0002519,2]
[385556361,1757895050659,-659.2,0.00025205,3]
[385556362,1757895050669,-800.9,0.00025205,3]
[385556363,1757895050679,-480.0,0.00025205,3]
[385556364,1757895050691,-480.0,0.00025205,3]
[385556365,1757895050703,-480.0,0.00025205,3]
[385556366,1757895050713,-673.9,0.00025205,3]
[385556367,1757895050724,-542.05,0.00025205,3]
[385556368,1757895050735,-480.0,0.00025205,3]
[385556369,1757895050747,-907.02,0.00025205,3]
[385556370,1757895050759,-663.12,0.00025205,3]
[385556371,1757895050770,-901.88,0.00025205,3]
[385556372,1757895050781,-3388.12,0.00025205,3]
[385556373,1757895050791,-480.0,0.00025205,3]
[385556374,1757895050802,-480.0,0.00025205,3]
[385556375,1757895050812,-480.0,0.00025205,3]
[385556376,1757895050824,-480.0,0.00025205,3]
[385556377,1757895050836,-3337.32,0.00025205,3]
[385556378,1757895050847,-480.0,0.00025205,3]
[385556379,1757895050859,-500.0,0.00025206,2]
[385556380,1757895050869,-2000.0,0.00025217,2]
[385556381,1757895050880,-2000.0,0.00025217,2]
[385556382,1757895050891,-2000.0,0.00025217,2]
[385556383,1757895050903,-1000.0,0.00025221,2]
[385556384,1757895050913,-500.0,0.00025221,2]
[385556385,1757895050923,-1000.0,0.00025221,2]
[385556386,1757895050933,-1000.0,0.00025221,2]
[385556387,1757895050944,-500.66439281,0.00025221,2]
[385556388,1757895050955,-1000.0,0.00025221,2]
[385556389,1757895050966,-1072.97345894,0.00025221,2]
[385556390,1757895050977,-1000.0,0.00025221,2]
[385556391,1757895050988,-1000.0,0.00025221,2]
[385556392,1757895050999,-1000.0,0.00025221,2]
[385556393,1757895051010,-1000.0,0.00025221,2]
[385556394,1757895051020,-1072.90338376,0.00025221,2]
[385556395,1757895051031,-1321.04939189,0.0002526,2]
[385556396,1757895051040,-3500.0,0.0002526,2]
[385556397,1757895051051,-2000.0,0.000253,2]
[385556398,1757895051062,-2000.0,0.000253,2]
[385556399,1757895051072,-300.0,0.00025321,2]
[385556400,1757895051083,-168.0,0.00025334,2]
[385556401,1757895051093,-560.0,0.00025361,2]
[385556402,1757895051104,-633.24,0.000254,7]
[385556403,1757895051115,-620.0,0.00025404,3]
[385556404,1757895051127,-1040.53806382,0.00025408,2]
[385556405,1757895051138,-1000.0,0.00025421,2]
[385556406,1757895051149,-200000.0,0.0002544,2]
[385556407,1757895051160,-1500.0,0.00025468,2]
[385556408,1757895051172,-157.19734382,0.00025473,2]
[385556409,1757895051184,-258.51054795,0.00025473,2]
[385556410,1757895051195,-150.0,0.00025473,2]
[385556411,1757895051206,-659.2,0.00025479,3]
[385556412,1757895051218,-800.9,0.00025479,3]
[385556413,1757895051228,-480.0,0.00025479,3]
[385556414,1757895051238,-480.0,0.00025479,3]
[385556415,1757895051248,-480.0,0.00025479,3]
[385556416,1757895051257,-673.9,0.00025479,3]
[385556417,1757895051267,-542.05,0.00025479,3]
[385556418,1757895051277,-480.0,0.00025479,3]
[385556419,1757895051288,-907.02,0.00025479,3]
[385556420,1757895051298,-663.12,0.00025479,3]
[385556421,1757895051309,-901.88,0.00025479,3]
[385556422,1757895051321,-3388.12,0.00025479,3]
[385556423,1757895051334,-480.0,0.00025479,3]
[385556424,1757895051345,-480.0,0.00025479,3]
[385556425,1757895051356,-480.0,0.00025479,3]
[385556426,1757895051366,-480.0,0.00025479,3]
[385556427,1757895051376,-3337.32,0.00025479,3]
[385556428,1757895051387,-480.0,0.00025479,3]
[385556429,1757895051397,-500.0,0.0002548,2]
[385556430,1757895051407,-10023.0,0.000255,2]
[385556431,1757895051417,-1073.0,0.000255,2]
[385556432,1757895051426,-1000.0,0.000255,2]
[385556433,1757895051437,-720.0,0.00025512,20]
[385556434,1757895051448,-168.0,0.00025567,2]
[385556435,1757895051458,-150.0,0.00025583,2]
[385556436,1757895051468,-2002.03774841,0.00025592,2]
[385556437,1757895051478,-720.0,0.00025605,2]
[385556438,1757895051488,-2006.23336427,0.00025645,2]
[385556439,1757895051499,-157.529894,0.00025658,3]
[385556440,1757895051508,-2500.0,0.00025663,2]
[385556441,1757895051519,-620.0,0.00025678,3]
[385556442,1757895051528,-25246.74,0.000257,7]
[385556443,1757895051538,-931.26,0.000257,7]
[385556444,1757895051548,-659.2,0.00025753,3]
[385556445,1757895051558,-800.9,0.00025753,3]
[385556446,1757895051568,-480.0,0.00025753,3]
[385556447,1757895051578,-512.92205875,0.00025753,3]
[385556448,1757895051588,-480.0,0.00025753,3]
[385556449,1757895051599,-673.9,0.00025753,3]
[385556450,1757895051608,-542.05,0.00025753,3]
[385556451,1757895051619,-480.0,0.00025753,3]
[385556452,1757895051632,-907.02,0.00025753,3]
[385556453,1757895051643,-663.12,0.00025753,3]
[385556454,1757895051652,-901.88,0.00025753,3]
[385556455,1757895051663,-3388.12,0.00025753,3]
[385556456,1757895051674,-480.0,0.00025753,3]
[385556457,1757895051684,-480.0,0.00025753,3]
[385556458,1757895051694,-480.0,0.00025753,3]
[385556459,1757895051705,-480.0,0.00025753,3]
[385556460,1757895051714,-3337.32,0.00025753,3]
[385556461,1757895051724,-480.0,0.00025753,3]
[385556462,1757895051735,-500.0,0.00025754,2]
[385556463,1757895051745,-1706.12878513,0.00025765,2]
[385556464,1757895051755,-2200.91174289,0.00025765,2]
[385556465,1757895051765,-2500.0,0.00025765,2]
[385556466,1757895051776,-1500.0,0.00025768,2]
[385556467,1757895051786,-698.54379411,0.00025768,2]
[385556468,1757895051796,-1500.0,0.00025768,2]
[385556469,1757895051807,-1500.0,0.00025768,2]
[385556470,1757895051817,-1500.0,0.00025768,2]
[385556471,1757895051827,-1500.0,0.00025768,2]
[385556472,1757895051838,-878.15729852,0.00025768,2]
[385556473,1757895051848,-1500.0,0.00025768,2]
[385556474,1757895051858,-212.0,0.00025771,2]
[385556475,1757895051868,-180.0,0.00025771,2]
[385556476,1757895051878,-587.0,0.00025771,2]
[385556477,1757895051889,-180.0,0.00025771,2]
[385556478,1757895051901,-17812.66341668,0.000258,2]
[385556479,1757895051911,-4000.0,0.00025808,2]
[385556480,1757895051922,-150.0,0.00025844,2]
[385556481,1757895051932,-450.0,0.00025868,2]
[385556482,1757895051943,-150.0,0.00025869,2]
[385556483,1757895051953,-976.0,0.00025869,2]
[385556484,1757895051964,-634.0,0.00025869,2]
[385556485,1757895051974,-2156.0,0.00025869,2]
[385556486,1757895051984,-5000.0,0.00025896,30]
[385556487,1757895051996,-1774.52,0.000259,7]
[385556488,1757895052006,-660.0,0.00025908,2]
[385556489,1757895052017,-2600.0,0.00025925,2]
[385556490,1757895052027,-167.418299,0.00025928,3]
[385556491,1757895052037,-620.0,0.00025952,3]
[385556492,1757895052048,-1500.0,0.00025968,2]
[385556493,1757895052058,-522.21027289,0.00026,2]
[385556494,1757895052068,-19900.0,0.00026,2]
[385556495,1757895052078,-2000.0,0.00026016,2]
[385556496,1757895052089,-659.2,0.00026027,3]
[385556497,1757895052099,-800.9,0.00026027,3]
[385556498,1757895052110,-171.76538064,0.00026027,3]
[385556499,1757895052120,-480.0,0.00026027,3]
[385556500,1757895052131,-673.9,0.00026027,3]
[385556501,1757895052142,-542.05,0.00026027,3]
[385556502,1757895052152,-480.0,0.00026027,3]
[385556503,1757895052162,-907.02,0.00026027,3]
[385556504,1757895052173,-663.12,0.00026027,3]
[385556505,1757895052184,-901.88,0.00026027,3]
[385556506,1757895052194,-3388.12,0.00026027,3]
[385556507,1757895052205,-480.0,0.00026027,3]
[385556508,1757895052215,-480.0,0.00026027,3]
[385556509,1757895052225,-480.0,0.00026027,3]
[385556510,1757895052235,-460.99787727,0.00026027,3]
[385556511,1757895052245,-3337.32,0.00026027,3]
[385556512,1757895052256,-480.0,0.00026027,3]
[385556513,1757895052266,-671.49,0.00026027,4]
[385556514,1757895052276,-500.0,0.00026028,2]
[385556515,1757895052286,-250.0,0.00026131,2]
[385556516,1757895052296,-191.77424978,0.0002616,2]
[385556517,1757895052305,-1506.85340584,0.00026211,2]
[385556518,1757895052315,-500.0,0.00026224,2]
[385556519,1757895052324,-620.0,0.00026226,3]
[385556520,1757895052333,-1073.0,0.000263,2]
[385556521,1757895052509,-1073.0,0.000263,2]
[385556522,1757895052521,-659.2,0.00026301,3]
[385556523,1757895052531,-800.9,0.00026301,3]
[385556524,1757895052541,-326.68421802,0.00026301,3]
[385556525,1757895052550,-673.9,0.00026301,3]
[385556526,1757895052560,-542.05,0.00026301,3]
[385556527,1757895052569,-480.0,0.00026301,3]
[385556528,1757895052578,-907.02,0.00026301,3]
[385556529,1757895052587,-663.12,0.00026301,3]
[385556530,1757895052597,-901.88,0.00026301,3]
[385556531,1757895052607,-3388.12,0.00026301,3]
[385556532,1757895052617,-480.0,0.00026301,3]
[385556533,1757895052632,-480.0,0.00026301,3]
[385556534,1757895052642,-219.91244574,0.00026301,3]
[385556535,1757895052652,-3337.32,0.00026301,3]
[385556536,1757895052662,-569.33831562,0.00026301,3]
[385556537,1757895052672,-500.0,0.00026302,2]
[385556538,1757895052682,-3000.0,0.00026312,2]
[385556539,1757895052692,-2000.0,0.00026316,2]
[385556540,1757895052702,-2000.0,0.00026316,2]
[385556541,1757895052711,-2000.0,0.00026316,2]
[385556542,1757895052720,-580.35275072,0.00026316,2]
[385556543,1757895052730,-2000.0,0.00026316,2]
[385556544,1757895052739,-2000.0,0.00026316,2]
[385556545,1757895052748,-5000.0,0.00026341,2]
[385556546,1757895052757,-1468.9536429,0.00026356,2]
[385556547,1757895052766,-633.24,0.000264,7]
[385556548,1757895052775,-600.0,0.00026416,2]
[385556549,1757895052784,-200000.0,0.0002644,2]
[385556550,1757895052793,-760.0,0.00026456,2]
[385556551,1757895052802,-620.0,0.000265,3]
[385556552,1757895052812,-29672.35506673,0.000265,2]
[385556553,1757895052821,-1505.19866516,0.00026516,2]
[385556554,1757895052830,-2073.24,0.00026535,2]
[385556556,1757895052839,-377.0959632,0.00026548,2]
[385556557,1757895052848,-188.5479816,0.00026548,2]
[385556558,1757895052857,-188.5479816,0.00026548,2]
[385556559,1757895052867,-188.5479816,0.00026548,2]
[385556560,1757895052876,-188.5479816,0.00026548,2]
[385556561,1757895052887,-167.418299,0.0002655,7]
[385556562,1757895052898,-363.8343939,0.00026564,2]
[385556563,1757895052907,-659.2,0.00026575,3]
[385556564,1757895052916,-800.9,0.00026575,3]
[385556565,1757895052926,-673.9,0.00026575,3]
[385556566,1757895052935,-542.05,0.00026575,3]
[385556567,1757895052943,-480.0,0.00026575,3]
[385556568,1757895052952,-907.02,0.00026575,3]
[385556569,1757895052962,-663.12,0.00026575,3]
[385556570,1757895052972,-901.88,0.00026575,3]
[385556571,1757895052981,-3388.12,0.00026575,3]
[385556572,1757895052991,-480.0,0.00026575,3]
[385556573,1757895053000,-480.0,0.00026575,3]
[385556574,1757895053010,-3337.32,0.00026575,3]
[385556575,1757895053019,-500.0,0.00026576,2]
[385556576,1757895053028,-1040.53806382,0.00026606,2]
[385556577,1757895053037,-350.0,0.00026679,2]
[385556578,1757895053047,-25246.74,0.000267,7]
[385556579,1757895053056,-157.529894,0.0002672,10]
[385556580,1757895053066,-167.418299,0.0002672,10]
[385556581,1757895053075,-620.0,0.00026774,3]
[385556582,1757895053086,-211.0,0.000268,2]
[385556583,1757895053095,-659.2,0.00026849,3]
[385556584,1757895053104,-800.9,0.00026849,3]
[385556585,1757895053114,-673.9,0.00026849,3]
[385556586,1757895053123,-542.05,0.00026849,3]
[385556587,1757895053133,-480.0,0.00026849,3]
[385556588,1757895053142,-907.02,0.00026849,3]
[385556589,1757895053151,-663.12,0.00026849,3]
[385556590,1757895053161,-901.88,0.00026849,3]
[385556591,1757895053171,-3388.12,0.00026849,3]
[385556592,1757895053181,-480.0,0.00026849,3]
[385556593,1757895053191,-480.0,0.00026849,3]
[385556594,1757895053200,-3337.32,0.00026849,3]
[385556595,1757895053210,-500.0,0.0002685,2]
[385556597,1757895053220,-2884.33405364,0.0002686,2]
[385556598,1757895053229,-2500.0,0.00026864,2]
[385556599,1757895053239,-501.50978933,0.00026864,2]
[385556600,1757895053248,-2500.0,0.00026864,2]
[385556601,1757895053258,-2500.0,0.00026864,2]
[385556602,1757895053267,-1953.06766678,0.00026864,2]
[385556603,1757895053276,-750.0,0.00026964,2]
[385556604,1757895053285,-236823.47257057,0.00027,14]
[385556605,1757895053295,-445303.7475516,0.00027,14]
[385556606,1757895053305,-160.0,0.00027,10]
[385556607,1757895053316,-2689.11686908,0.00027,2]
[385556608,1757895053333,-84122.3502199,0.00027,14]
[385556609,1757895053416,-29784.65949818,0.00027,14]
[385556610,1757895053426,-63644.27269581,0.00027,12]
[385556647,1757895172947,321.80158092,0.000199,2]
[385556681,1757895376815,278.89470348,0.000199,2]
[385556683,1757895387609,24900.0,0.00023288,30]
[385556725,1757895563282,350.53167244,0.000199,2]
[385556739,1757895644065,1251.32170051,0.0002015,2]
[385556740,1757895644091,3748.67829949,0.0002015,2]
[385556744,1757895667383,5000.0,0.0002015,2]
[385556749,1757895689501,1251.33170051,0.0002015,2]
[385556750,1757895689524,3748.66829949,0.0002015,2]
[385556754,1757895712231,5000.0,0.0002015,2]
[385556760,1757895735391,1251.34170051,0.0002015,2]
[385556761,1757895735416,3748.65829949,0.0002015,2]
[385556765,1757895757019,341.4787844,0.000199,2]
[385556766,1757895757902,5000.0,0.0002015,2]
[385556770,1757895780714,909.87291611,0.0002015,2]
[385556771,1757895780738,4090.12708389,0.0002015,2]
[385556775,1757895803383,262.0,0.0002015,2]
[385556776,1757895803428,5000.0,0.0002015,2]
[385556779,1757895819672,647.88291611,0.0002015,2]
[385556780,1757895819697,4352.11708389,0.0002015,2]
[385556802,1757895953961,295.9482798,0.000199,2]
[385556813,1757896010669,10000.0,0.00030228,50]
[385556818,1757896024617,5000.0,0.0002015,2]
[385556823,1757896040302,351.94463631,0.0002015,2]
[385556824,1757896040324,4648.05536369,0.0002015,2]
[385556832,1757896065490,5000.0,0.0002015,2]
[385556839,1757896088798,351.95463631,0.0002015,2]
[385556840,1757896088822,4648.04536369,0.0002015,2]
[385556846,1757896110793,5000.0,0.0002015,2]
[385556858,1757896134060,351.96463631,0.0002015,2]
[385556859,1757896134083,4648.03536369,0.0002015,2]
[385556862,1757896149091,-666.0,0.00020267,2]
[385556863,1757896149117,-328.72347037,0.00020499,2]
[385556864,1757896150119,-4671.27652963,0.00020499,2]
[385556865,1757896150139,-132.4007868,0.00020606,2]
[385556866,1757896151138,-133.22868159,0.00020606,2]
[385556868,1757896156320,1609.39996511,0.00020607,2]
[385556870,1757896167096,-3165.54087088,0.00020401,2]
[385556871,1757896167122,-3390.60003489,0.00020607,2]
[385556872,1757896167141,-183.0,0.00020815,2]
[385556873,1757896167161,-300.0,0.00020815,2]
[385556874,1757896167180,-300.0,0.00020815,2]
[385556875,1757896167200,-300.0,0.00020915,2]
[385556876,1757896167219,-1200.0,0.00020916,2]
[385556877,1757896167238,-4033.71883068,0.00020917,2]
[385556878,1757896167263,-5966.28116932,0.00020917,2]
[385556879,1757896167283,-268.92364062,0.00021158,2]
[385556880,1757896167304,-8508.40259693,0.000215,2]
[385556881,1757896167325,-2016.63161479,0.00021555,2]